Cogmind - Beta 17.1 @@@ ROGUE MODE // 2026.09.08 @ 00:09:53 Player: Bsuter Result: Destroyed by Y-45 Defender with Beam Rifle Performance ------------- Evolutions (0) 0 Regions Visited (2) 400 Robots Destroyed (6) 30 Value Destroyed (150) 150 Prototype IDs (0) 0 Alien Tech Used (0) 0 Bonus (0) 0 TOTAL SCORE: 580 Bonus ------- None Cogmind --------- Core Integrity 0/250 Matter 300/300 Energy 197/200 System Corruption 0% Temperature Cool (15) Movement Core (250) Ox4 Location -10/Subcaves Parts ------- > --- POWER (1) -------- Subdweller Power Source > --- PROPULSION (2) --- (None) > --- UTILITY (2) ------ Small Storage Unit > --- WEAPON (2) ------- Medium Laser Small Laser > --- INVENTORY (8) ---- Subdweller Power Source Compact Wheel Terrain Scanner Terrain Scanner Light Assault Rifle Datajack Peak State ------------ > --- POWER ------------ Light Ion Engine > --- PROPULSION ------- Aluminum Leg Aluminum Leg > --- UTILITY ---------- Small Storage Unit Terrain Scanner > --- WEAPON ----------- Medium Laser Assault Rifle > --- INVENTORY -------- Light Ion Engine Light Treads Light Treads Compact Wheel Compact Wheel Small Laser [Rating: 7] Favorites ----------- Power Light Ion Engine Engine Light Ion Engine Propulsion Aluminum Leg Leg Aluminum Leg Utility Small Storage Unit Device Terrain Scanner Storage Small Storage Unit Weapon Assault Rifle Energy Gun Medium Laser Ballistic Gun Assault Rifle Build | -11 -10 -10 ------- Run | Yrd Mat Sub Slots Evolved . | . . . Power . | . . . Propulsion . | . . . Utility . | . . . Weapon . | . . . Parts Attached 7 | . 2 5 Power 2 | . . 2 Engine 2 | . . 2 Core . | . . . Reactor . | . . . Propulsion . | . . . Treads . | . . . Leg . | . . . Wheel . | . . . Hover . | . . . Flight . | . . . Utility 1 | . 1 . Device 1 | . 1 . Storage . | . . . Processor . | . . . Hackware . | . . . Protection . | . . . Artifact . | . . . Weapon 4 | . 1 3 Energy Gun 2 | . . 2 Energy Cannon . | . . . Ballistic Gun 2 | . 1 1 Ballistic Cannon . | . . . Launcher . | . . . Special Weapon . | . . . Impact Weapon . | . . . Slashing Weapon . | . . . Piercing Weapon . | . . . Special Melee Weapon . | . . . Unidentified Prototypes . | . . . Parts Lost 7 | . . 7 Power 2 | . . 2 Propulsion 2 | . . 2 Utility 1 | . . 1 Weapon 2 | . . 2 Highest Loss Streak 7 | . . 7 To Critical Strikes . | . . . Average Backups 7 | . 7 6 Power . | . 1 . Propulsion 1 | . 2 1 Utility 1 | . 1 2 Weapon 2 | . 2 2 Tool/Special . | . . . Unused Backups 5 | . . 5 Power 1 | . . 1 Propulsion . | . . . Utility 2 | . . 2 Weapon 1 | . . 1 Tool/Special 1 | . . 1 Average Slot Usage (%) 89 | . 98 81 Engine 12 | . 14 11 Leg 21 | . 28 17 Device 10 | . 12 9 Storage 14 | . 14 14 Energy Gun 8 | . 4 11 Ballistic Gun 19 | . 23 16 Peak Build Rating 7 | . 7 7 Average Rating 6 | . 6 5 On Entrance 6 | 6 6 7 Avg Prop Armor Cover (%) . | . . . Naked Turns . | . . . Heaviest Build 13 | 12 13 13 Greatest Support 20 | 20 20 20 Greatest Overweight (x) 4 | . . 4 Average Overweight (x) . | . . . Largest Inventory Capacity 8 | . 8 8 Average Capacity 8 | . 8 8 Most Carried 8 | . 8 8 Average Carried 7 | . 7 6 Final Capacity 8 | 8 8 8 Final Carried 8 | 6 8 6 Class Distribution -------------------- 100% | Mutant Dominant Class ---------------- Mutant | -10/Materials Mutant | -10/Subcaves Resources | -11 -10 -10 ----------- Run | Yrd Mat Sub Matter Collected 320 | 200 40 80 Remotely . | . . . Salvage Created 182 | . 40 142 Parts 15 | . 6 9 Haulers Intercepted . | . . . Recyclers Shooed . | . . . Parts Field Recycled . | . . . Retrieved Matter . | . . . Parts Self-Destructed . | . . . Prevented . | . . . Parts Restored . | . . . Kills | -11 -10 -10 ------- Run | Yrd Mat Sub Combat Hostiles Destroyed 6 | . 3 3 Guns 6 | . 3 3 Classes Destroyed 2 | . 1 1 Swarmer 3 | . 3 . Subdweller 3 | . . 3 Best Kill Streak 3 | . 2 3 Combat Bots Only 3 | . 2 3 Max Kills in Single Turn 1 | . 1 1 Gunslinging . | . . . Exploded . | . . . Melee . | . . . Uniques/NPCs Destroyed . | . . . Combat | -11 -10 -10 -------- Run | Yrd Mat Sub Hostile Shots Fired 67 | . 11 56 Missed 14 | . 3 11 Hits 53 | . 8 45 Projectile 53 | . 8 45 Damage Taken 1006 | . 64 942 Core 261 | . 27 234 Absorbed by Shields . | . . . Core Remaining (%) 100 | 100 . . Volleys Fired 24 | . 5 19 Largest 2 | . 2 2 Hottest 90 | . 40 90 Shots Fired 46 | . 10 36 Gun 46 | . 10 36 Cannon . | . . . Launcher . | . . . Special . | . . . Kinetic 25 | . 10 15 Thermal 21 | . . 21 Explosive . | . . . Electromagnetic . | . . . Robot Hit Streak 25 | . 2 25 Robot Miss Streak 3 | . 3 1 Penetration Max . | . . . Secondary Targets 1 | . . 1 Max Gunslinging Chain 1 | . . 1 Shots Hit Robots 36 | . 4 32 Core Hits 13 | . 3 10 Critical Kills . | . . . Critical Parts Destroyed . | . . . Critical Strikes 3 | . . 3 Burn 3 | . . 3 Melee Attacks . | . . . Impact . | . . . Slashing . | . . . Piercing . | . . . Sneak Attacks . | . . . Combat Hostiles . | . . . Follow-up Attacks . | . . . Damage Inflicted 424 | . 44 380 Guns 424 | . 44 380 Cannons . | . . . Explosions . | . . . Melee . | . . . Ramming . | . . . Kinetic 199 | . 44 155 Thermal 225 | . . 225 Explosive . | . . . Electromagnetic . | . . . Impact . | . . . Slashing . | . . . Piercing . | . . . Highest Corruption . | . . . Average Corruption . | . . . Corruption Purged . | . . . Corruption Blocked . | . . . Overload Shots . | . . . Overflow Damage . | . . . Projectiles . | . . . Explosions . | . . . Melee . | . . . Knockbacks . | . . . Impact . | . . . Kinetic . | . . . Secondary . | . . . Self-Inflicted Damage . | . . . Shots . | . . . Rammed . | . . . Targets Rammed . | . . . Kicked . | . . . Crushed . | . . . Highest Temperature . | . . . Average Temperature . | . . . Received Heat Transfer 294 | . . 294 Siege Activations . | . . . Martial Activations . | . . . Shielding Activations . | . . . Robots Disrupted . | . . . Combat Hostiles . | . . . Robots Corrupted . | . . . Combat Hostiles . | . . . Parts Fried . | . . . Impact Corruptions . | . . . Robots Melted . | . . . Combat Hostiles . | . . . Parts Melted . | . . . Heat Transferred 817 | . . 817 Parts Sabotaged . | . . . Parts Stolen . | . . . Parts Stripped . | . . . Power Chain Reactions . | . . . Alert | -11 -10 -10 ------- Run | Yrd Mat Sub Maximum Alert Level . | . . . Low Security (%) 100 | . 100 . Level 1 . | . . . Level 2 . | . . . Level 3 . | . . . Level 4 . | . . . Level 5 . | . . . High Security . | . . . Max Security . | . . . Peak Influence 65 | . 65 . Initial . | . . . Average 21 | . 21 . Influence Increases 85 | . 85 . Destroy 0b10 Robot/C 60 | . 60 . Destroy Leader 10 | . 10 . Lose Combat Pursuer 15 | . 15 . Influence Decreases 85 | . 50 35 Entered New Map 18 | . . 18 Time Decay 67 | . 50 17 Squads Dispatched . | . . . Investigation . | . . . Extermination . | . . . Reinforcement . | . . . Assault . | . . . Garrison . | . . . Intercept . | . . . Searches Triggered . | . . . Construction Impeded . | . . . Haulers Reinforced . | . . . Active Scanning Responses . | . . . Cargo Convoy Interrupts . | . . . Stealth | -11 -10 -10 --------- Run | Yrd Mat Sub Distress Signals . | . . . Communications Jammed . | . . . Distress Signals . | . . . Times Spotted 11 | . 5 6 Peak Tracking Total 3 | . 3 3 Tactical Retreats 1 | . 1 . Traps | -11 -10 -10 ------- Run | Yrd Mat Sub Traps Triggered . | . . . Indirectly . | . . . Trap Hack Attempts . | . . . Triggered . | . . . Disarmed . | . . . Reprogrammed . | . . . Reused . | . . . Traps Extracted . | . . . Installed . | . . . Triggered . | . . . Machines | -11 -10 -10 ---------- Run | Yrd Mat Sub Machines Disabled . | . . . Max in Single Turn . | . . . Machines Repaired . | . . . Machines Dismantled . | . . . Machines Sabotaged . | . . . Overloaded Fab Kills . | . . . Hacking | -11 -10 -10 --------- Run | Yrd Mat Sub Machines Accessed 1 | . 1 . Terminals 1 | . 1 . Fabricators . | . . . Repair Stations . | . . . Recycling Units . | . . . Scanalyzers . | . . . Garrison Access . | . . . Total Hacks 1 | . 1 . Successful . | . . . Failed 1 | . 1 . Catastrophic . | . . . Database Lockouts . | . . . Manual 1 | . 1 . Terminals 1 | . 1 . Fabricators . | . . . Repair Stations . | . . . Recycling Units . | . . . Scanalyzers . | . . . Garrison Access . | . . . Terminal Hacks . | . . . Fabricator Hacks . | . . . Repair Station Hacks . | . . . Recycling Unit Hacks . | . . . Scanalyzer . | . . . Garrison Access Hacks . | . . . Unauthorized Hacks . | . . . Terminals . | . . . Fabricators . | . . . Repair Stations . | . . . Recycling Units . | . . . Scanalyzers . | . . . Garrison Access . | . . . Data Cores Recovered . | . . . Used . | . . . Hacking Detections . | . . . Full Trace Events . | . . . Feedback Events . | . . . Feedback Blocked . | . . . Robot Schematics Acquired . | . . . Robots Built . | . . . Authchips . | . . . Time . | . . . Total Robot Build Rating . | . . . Part Schematics Acquired . | . . . Parts Built . | . . . Authchips . | . . . Time . | . . . Total Part Build Rating . | . . . Part Studies Acquired . | . . . Parts Repaired . | . . . Time . | . . . Parts Recycled . | . . . Recycled Matter . | . . . Retrieved Matter . | . . . Retrieved Components . | . . . Parts Scanalyzed . | . . . Part Schematics Acquired . | . . . Parts Damaged . | . . . Bothacking | -11 -10 -10 ------------ Run | Yrd Mat Sub Used RIF Installer . | . . . Robots Hacked . | . . . Non-combat . | . . . Combat . | . . . Robot Hacks Applied . | . . . Relay Couplers Released . | . . . Fabnet Peak Effective % . | . . . Robots Rewired . | . . . Allies Hacked . | . . . Hacks Repelled . | . . . Allies | -11 -10 -10 -------- Run | Yrd Mat Sub Total Allies . | . . . Largest Group . | . . . Highest-Rated Group . | . . . Highest-Rated Ally . | . . . Total Orders . | . . . Ally Attacks . | . . . Total Damage . | . . . Kills . | . . . Allies Corrupted . | . . . Allies Melted . | . . . Intel | -11 -10 -10 ------- Run | Yrd Mat Sub Active Infowar (turns) 452 | . 243 209 Terrain 452 | . 243 209 Robot Analysis Total . | . . . Derelict Logs Recovered 1 | . . 1 Drone Launches . | . . . Drone Recoveries . | . . . Exploration | -11 -10 -10 ------------- Run | Yrd Mat Sub Turns Passed 585 | . 253 332 Spaces Moved 361 | 1 184 176 Core 44 | . . 44 Treads . | . . . Legs 317 | 1 184 132 Wheels . | . . . Hover . | . . . Flight . | . . . Fastest Speed 120 | 120 120 120 Average Speed 134 | 120 120 149 Slowest Speed 250 | 120 120 250 Overloaded Moves . | . . . Propulsion Burnouts . | . . . Robots Hopped . | . . . Potential Cave-ins . | . . . Cave-ins Triggered . | . . . Exploration Rate (%) 14 | 1 25 16 Regions Visited 2 Branch Regions 1 Pre-discovered Areas . | . . . Known Exits Taken . | . . . Unknown Exits Taken 2 | 1 1 . Scrap Searched . | . . . Spaces Dug . | . . . Terrain Destroyed . | . . . Melee . | . . . Projectile . | . . . AOE . | . . . Terrain Rammed . | . . . Walls Destroyed . | . . . Machines Disabled . | . . . Actions | -11 -10 -10 --------- Run | Yrd Mat Sub Total 418 | . 207 211 Wait 15 | . 8 7 Move 359 | . 183 176 Hop . | . . . Pick Up 6 | . 5 1 Fast Attach 4 | . 2 2 Attach 4 | . . 4 Detach 1 | . . 1 Swap . | . . . Drop 5 | . 4 1 Fire 24 | . 5 19 Melee . | . . . Ram . | . . . Kick . | . . . Crush . | . . . Escape Stasis . | . . . Rewire . | . . . Trap . | . . . Miscellaneous . | . . . Route ------- -11/Scrapyard -10/Materials -10/Subcaves History --------- Turn | Location | Event 1 | -11/Scrapyard | Discovered new exit (range 0) 1 | -11/Scrapyard | Entered Materials 235 | -10/Materials | Discovered new exit (range 11) 254 | -10/Materials | Entered Subcaves 314 | -10/Subcaves | Build established: Mutant 403 | -10/Subcaves | Learned Materials emergency access door positions 446 | -10/Subcaves | Core integrity fell below 50% 472 | -10/Subcaves | Core integrity fell below 20% 494 | -10/Subcaves | Lost 7 parts (2p2n1u2w) 586 | -10/Subcaves | Destroyed by Y-45 Defender with Beam Rifle Last Messages --------------- 00463_ 9V-7YC(R) destroyed. 00463_ Switching to secondary target: GZ-HTQ(R). 00466_ GZ-HTQ(R) affixes Scrap Shield Fragment to Scrap Shield. 00466_ Acquired 50 matter. 00468_ Acquired 20 matter. 00472_ Subatomizers dissect the Disposable Heat Sink. 00478_ GZ-HTQ(R) suffers critical hit (Burn). 00478_ GZ-HTQ(R) destroyed. 00484_ Subatomizers dissect the Disposable Heat Sink. 00487_ Acquired Sub. Power Source. 00494_ Subatomizers dissect the Disposable Heat Sink. 00495_ Acquired 10 matter. 00506_ Subatomizers dissect the Disposable Heat Sink. 00519_ Subatomizers dissect the Disposable Heat Sink, destroying it. Map ----- +----------------------------------------------------+ | ?????????????????? #???#?# ##???????#??#???? | | ????????????????? #????# #??#???????#????? | | ????????????????? ##??# ##?#?????#???#???? | | ????????????????? #?# ## #???##??#????????? | | ?????????????????? ###### !####&#???????????? | | ???????????????????? ##?# &!& %#??????#?????? | | ?????????????????????# #### #%]#????????????? | | ??????????????????????# ### !!#????????????? | | ?????????????????????### # ##??????????#?? | | ??????????????????????## ##???#?????????? | | ?????????????????????## ##??????????????? | | ?????????????????????# ##???????????????? | | ?????????????????????## ##??????????#?????? | | ??????????????????????# ####??????##??????? | | ??????????????????????# " ## ###????????????? | | ???????????????"?????## ## #????????????? | | ???????????????""##### #????????????? | | ??????????? ? """ "" " #????????????? | | ???????????# """" ## ""#######????????????? | | ???????????? """ #### ##??????????????????? | | ?????????????"""##### ##?###???????????????????? | | ????????????????????# ##??????????????????????? | | ???????????????????##" #??????????????????????? | | ???????????????????# "" #??????????????????????? | | ???????????????????# "" ##?????????????????????? | | ???????????????????## ##@ #?????????????????????? | | ????????????????????##### #????????????????????? | | ????????????????????????# ???????????????????? | | ????????????????????????# #??????????????????? | | ???????????????????????? ##??????????????????? | | ????????????????????????# ##???????????????????? | | ????????????????????????# #????????????????????? | | ????????????????????????#g ????????????????????? | | ????????????????????????# g????????????????????? | | ????????????????????????? Y ???????????????????? | | ????????????????????????? ???????????????????? | | ????????????????????????? ???????????????????? | | ????????????????????????? ??????????????????? | | ????????????????????????? ??????????????????? | | ????????????????????????? # # ???????????????????? | | ?????????????????????????#?#?????????????????????? | | ?????????????????????????????????????????????????? | | ?????????????????????????????????????????????????? | | ?????????????????????????????????????????????????? | | ?????????????????????????????????????????????????? | | ?????????????????????????????????????????????????? | | ?????????????????????????????????????????????????? | | ?????????????????????????????????????????????????? | | ?????????????????????????????????????????????????? | | ?????????????????????????????????????????????????? | +----------------------------------------------------+ Best States ------------- Heat Dissipation 25 Energy Generation 15 Energy Capacity 200 Matter Stores 300 Matter Capacity 300 Sight Range 16 Terrain Scan Range 14 Terrain Scan Density 10 Evasion (%) 55 Item Schematics ----------------- None Robot Schematics ------------------ None Fabricated ------------ Nothing Repaired ---------- Nothing Studied --------- None Alien Tech Used ----------------- None Achievements -------------- None Challenges ------------ None Game ------ Seed AuthchipHeatBroadsword Manual? 0 Play Time 00:06:15 Cumulative 32.5 hours Start 2026.09.08 @ 00:05:36 End 2026.09.08 @ 00:09:53 Sessions 1 Manual Loads 0 Difficulty Rogue Special Mode None Game No. 37 Rogue 37 Adventurer 0 Explorer 0 Win Type - Total 0 Types 0/0/0/0/0/0/0/0/0/0 Lore% 19 Gallery% 23 Achievement% 21 Wizard Run 0 Options --------- Layout 1 ASCII 0 Keyboard 1 Movement Arrows Keybinds 1 Fullscreen 2 Font 36/Smallcaps Map View 50x40 Zoom Use 0% Tactical HUD 1 Map Filters NONE Filters NONE Steam 1 RUN: 61805f26-507a-484f-84fc-880f14b303ed